{"text_format":"1","workbook":"xlsx","n_sheets":5,"sheets":["Veranstaltungsanfrage","Getränkevorauswahl","Dropdownliste","Mietpreise","Summen"],"not_rendered":{"charts":0,"images":22,"macros":1,"external_links":0,"defined_names":1,"comments":0,"pivot_tables":0},"unopened":[],"bounds":{"document_bytes":16777216,"sheet_cells":100000,"rows_first":2000,"rows_last":500,"rows_between":2000,"halvings":0,"cell_chars":16384,"cell_head_chars":4096},"cells_cut":0,"cells_raw":0,"read":"whole","date_system":"1900"}

{"sheet":"Veranstaltungsanfrage","index":0,"n_rows":144,"n_cols":14,"rows_kept":144,"cut":false,"hidden":false,"merged":[[143,11,143,12],[14,10,14,11],[17,3,17,4],[17,6,17,8],[14,3,14,4],[14,6,14,8],[20,3,20,4],[20,6,20,8],[34,3,34,4],[28,3,28,4],[28,6,28,8],[25,3,25,4],[25,6,25,8],[37,3,37,4],[34,6,34,8],[37,6,37,7],[50,6,50,7],[40,3,40,4],[140,8,140,9],[138,8,138,9],[139,8,139,9],[108,8,108,9],[109,8,109,9],[110,8,110,9],[111,8,111,9],[112,8,112,9],[115,8,115,9],[64,5,65,6]]}
[]
[]
[]
[null,null,"Veranstaltungsanfrage "]
[]
[]
[]
[]
[null,null,"Kontaktdaten"]
[]
[null,null,null,"Firma/Verein:"]
[]
[]
[null,null,null,"Name:",null,null,"Vorname:",null,null,null,"Kundennummer (falls vorhanden):"]
[]
[]
[null,null,null,"Straße:",null,null,"PLZ, Ort:"]
[]
[]
[null,null,null,"Telefon:",null,null,"E-Mail:"]
[]
[]
[null,null,"Rechnungsadresse "]
[]
[null,null,null,"Name:",null,null,"Vorname:"]
[]
[]
[null,null,null,"Staße:",null,null,"PLZ, Ort:"]
[]
[]
[null,null,"Informationen zur Veranstaltung"]
[]
[]
[null,null,null,"Name der Veranstaltung:",null,null,"Zeitraum der Veranstaltung:"]
[]
[]
[null,null,null,"Datum der Veranstaltung:",null,null,"Veranstaltungsart:"]
[null,null,null,null,null,null,"Geburtstag"]
[]
[null,null,null,"Personenanzahl:",null,null,"einmalig"]
[null,null,null,null,null,null,"wiederkehrend"]
[]
[null,null,"Anlieferung und Abholung"]
[]
[]
[]
[null,null,null,"Wunschtermin der Anlieferung:",null,null,"Straße:"]
[]
[]
[null,null,null,"Wunschtermin der Abholung:",null,null,"PLZ, Ort:"]
[]
[]
[]
[null,null,"Ansprechpartner Vorort am Tag der Veranstaltung (Anlieferung/Abholung )"]
[]
[]
[]
[null,null,null," Name:",null,null,"Vorname:"]
[]
[]
[null,null,null,"Telefon:"]
[]
[]
[]
[null,null,null,null,null,"Equipment"]
[]
[]
[null,null,"Gläser"]
[]
[]
[]
[null,null,null,null,"Bezugsart:","Zufuhr bis 99 Km"]
[]
[]
[null,null,null,null,"Artikelnummer","Mietpreis ","Anzahl"]
[]
[null,null,null,"Bergamo Pokal 0,1 (36 St.)",6136,{"$f":"IF($F$72=\"Zufuhr bis 99 Km\",VLOOKUP(E77,Mietpreise!$A:$H,6,0),IF($F$72=\"Zufuhr ab 100 Km\",VLOOKUP(E77,Mietpreise!$A:$H,8,0)))","v":0}]
[null,null,null,"Bistro-Becher 0,25  (20 St.)",6012,{"$f":"IF($F$72=\"Zufuhr bis 99 Km\",VLOOKUP(E78,Mietpreise!$A:$H,6,0),IF($F$72=\"Zufuhr ab 100 Km\",VLOOKUP(E78,Mietpreise!$A:$H,8,0)))","v":0}]
[null,null,null,"Krüge 0,3 (18 St.)",6013,{"$f":"IF($F$72=\"Zufuhr bis 99 Km\",VLOOKUP(E79,Mietpreise!$A:$H,6,0),IF($F$72=\"Zufuhr ab 100 Km\",VLOOKUP(E79,Mietpreise!$A:$H,8,0)))","v":0}]
[null,null,null,"Krüge 0,4",6114,{"$f":"IF($F$72=\"Zufuhr bis 99 Km\",VLOOKUP(E80,Mietpreise!$A:$H,6,0),IF($F$72=\"Zufuhr ab 100 Km\",VLOOKUP(E80,Mietpreise!$A:$H,8,0)))","v":0}]
[null,null,null,"Krüge 0,5 (15 St.)",6215,{"$f":"IF($F$72=\"Zufuhr bis 99 Km\",VLOOKUP(E81,Mietpreise!$A:$H,6,0),IF($F$72=\"Zufuhr ab 100 Km\",VLOOKUP(E81,Mietpreise!$A:$H,8,0)))","v":0}]
[null,null,null,"Helles Glas 0,3 (20 St.)",6141,{"$f":"IF($F$72=\"Zufuhr bis 99 Km\",VLOOKUP(E82,Mietpreise!$A:$H,6,0),IF($F$72=\"Zufuhr ab 100 Km\",VLOOKUP(E82,Mietpreise!$A:$H,8,0)))","v":0}]
[null,null,null,"Maßkrüge 1,0 (15 St.)",6016,{"$f":"IF($F$72=\"Zufuhr bis 99 Km\",VLOOKUP(E83,Mietpreise!$A:$H,6,0),IF($F$72=\"Zufuhr ab 100 Km\",VLOOKUP(E83,Mietpreise!$A:$H,8,0)))","v":0}]
[null,null,null,"Weizenbierglas 0,3 (24 St.)",6059,{"$f":"IF($F$72=\"Zufuhr bis 99 Km\",VLOOKUP(E84,Mietpreise!$A:$H,6,0),IF($F$72=\"Zufuhr ab 100 Km\",VLOOKUP(E84,Mietpreise!$A:$H,8,0)))","v":0}]
[null,null,null,"Weizenbierglas 0,5 (24 St.)",6054,{"$f":"IF($F$72=\"Zufuhr bis 99 Km\",VLOOKUP(E85,Mietpreise!$A:$H,6,0),IF($F$72=\"Zufuhr ab 100 Km\",VLOOKUP(E85,Mietpreise!$A:$H,8,0)))","v":0}]
[null,null,null,"Classic-Pokal 0,3 (24 St.)",6055,{"$f":"IF($F$72=\"Zufuhr bis 99 Km\",VLOOKUP(E86,Mietpreise!$A:$H,6,0),IF($F$72=\"Zufuhr ab 100 Km\",VLOOKUP(E86,Mietpreise!$A:$H,8,0)))","v":0}]
[null,null,null,"Coca Cola Glas 0,2 (20 St.)",6017,{"$f":"IF($F$72=\"Zufuhr bis 99 Km\",VLOOKUP(E87,Mietpreise!$A:$H,6,0),IF($F$72=\"Zufuhr ab 100 Km\",VLOOKUP(E87,Mietpreise!$A:$H,8,0)))","v":0}]
[null,null,null,"Coca Cola Glas 0,3 (20 St.)",6018,{"$f":"IF($F$72=\"Zufuhr bis 99 Km\",VLOOKUP(E88,Mietpreise!$A:$H,6,0),IF($F$72=\"Zufuhr ab 100 Km\",VLOOKUP(E88,Mietpreise!$A:$H,8,0)))","v":0}]
[null,null,null,"Pfalzbecher 0,25 (Schorleglas)  (24 St.)",6604,{"$f":"IF($F$72=\"Zufuhr bis 99 Km\",VLOOKUP(E89,Mietpreise!$A:$H,6,0),IF($F$72=\"Zufuhr ab 100 Km\",VLOOKUP(E89,Mietpreise!$A:$H,8,0)))","v":0.1}]
[null,null,null,"Sektglas 0,1 (40 St.)",6603,{"$f":"IF($F$72=\"Zufuhr bis 99 Km\",VLOOKUP(E90,Mietpreise!$A:$H,6,0),IF($F$72=\"Zufuhr ab 100 Km\",VLOOKUP(E90,Mietpreise!$A:$H,8,0)))","v":0.1}]
[null,null,null,"Stielglas Bad Dürrheimer 0,2 ( 20 St.)",6607,{"$f":"IF($F$72=\"Zufuhr bis 99 Km\",VLOOKUP(E91,Mietpreise!$A:$H,6,0),IF($F$72=\"Zufuhr ab 100 Km\",VLOOKUP(E91,Mietpreise!$A:$H,8,0)))","v":0.1}]
[null,null,null,"Schnapsglas (40 St.)",6600,{"$f":"IF($F$72=\"Zufuhr bis 99 Km\",VLOOKUP(E92,Mietpreise!$A:$H,6,0),IF($F$72=\"Zufuhr ab 100 Km\",VLOOKUP(E92,Mietpreise!$A:$H,8,0)))","v":0.1}]
[null,null,null,"Whiskyglas 2 +4 cl  (24 St.)",6601,{"$f":"IF($F$72=\"Zufuhr bis 99 Km\",VLOOKUP(E93,Mietpreise!$A:$H,6,0),IF($F$72=\"Zufuhr ab 100 Km\",VLOOKUP(E93,Mietpreise!$A:$H,8,0)))","v":0.1}]
[null,null,null,"Longdrinkglas 0,2  (24 St.)",6602,{"$f":"IF($F$72=\"Zufuhr bis 99 Km\",VLOOKUP(E94,Mietpreise!$A:$H,6,0),IF($F$72=\"Zufuhr ab 100 Km\",VLOOKUP(E94,Mietpreise!$A:$H,8,0)))","v":0.1}]
[null,null,null,"Weißweinpokal 0,1 + 0,25  (24 St.)",6605,{"$f":"IF($F$72=\"Zufuhr bis 99 Km\",VLOOKUP(E95,Mietpreise!$A:$H,6,0),IF($F$72=\"Zufuhr ab 100 Km\",VLOOKUP(E95,Mietpreise!$A:$H,8,0)))","v":0.1}]
[null,null,null,"Ramazzotti-Glas  (24 St.)",6615,{"$f":"IF($F$72=\"Zufuhr bis 99 Km\",VLOOKUP(E96,Mietpreise!$A:$H,6,0),IF($F$72=\"Zufuhr ab 100 Km\",VLOOKUP(E96,Mietpreise!$A:$H,8,0)))","v":0.1}]
[null,null,null,"Caipirinha-Gläser  (24 St.)",6612,{"$f":"IF($F$72=\"Zufuhr bis 99 Km\",VLOOKUP(E97,Mietpreise!$A:$H,6,0),IF($F$72=\"Zufuhr ab 100 Km\",VLOOKUP(E97,Mietpreise!$A:$H,8,0)))","v":0.1}]
[null,null,null,"Glühweinbecher 0,2 (24 St.)",6621,{"$f":"IF($F$72=\"Zufuhr bis 99 Km\",VLOOKUP(E98,Mietpreise!$A:$H,6,0),IF($F$72=\"Zufuhr ab 100 Km\",VLOOKUP(E98,Mietpreise!$A:$H,8,0)))","v":1.2}]
[null,null,null,null,null,null,null,null,"Summe:",{"$f":"VLOOKUP($I$99,Summen!$A:$B,2,0)","v":0}]
[]
[null,null,"Mobiliar"]
[]
[]
[]
[null,null,null,null,"Artikelnummer","Mietpreis ","Anzahl"]
[]
[null,null,null,"Festplatztisch",6001,{"$f":"IF($F$72=\"Zufuhr bis 99 Km\",VLOOKUP(E107,Mietpreise!$A:$H,6,0),IF($F$72=\"Zufuhr ab 100 Km\",VLOOKUP(E107,Mietpreise!$A:$H,8,0)))","v":2.5}]
[null,null,null,"Festplatzbank",6002,{"$f":"IF($F$72=\"Zufuhr bis 99 Km\",VLOOKUP(E108,Mietpreise!$A:$H,6,0),IF($F$72=\"Zufuhr ab 100 Km\",VLOOKUP(E108,Mietpreise!$A:$H,8,0)))","v":1.25}]
[null,null,null,"Biertisch Schürze Fürstenberg",6177,{"$f":"IF($F$72=\"Zufuhr bis 99 Km\",VLOOKUP(E109,Mietpreise!$A:$H,6,0),IF($F$72=\"Zufuhr ab 100 Km\",VLOOKUP(E109,Mietpreise!$A:$H,8,0)))","v":4}]
[null,null,null,"Edelstahltheke",6004,{"$f":"IF($F$72=\"Zufuhr bis 99 Km\",VLOOKUP(E110,Mietpreise!$A:$H,6,0),IF($F$72=\"Zufuhr ab 100 Km\",VLOOKUP(E110,Mietpreise!$A:$H,8,0)))","v":20}]
[null,null,null,"Bartheke",6619,{"$f":"IF($F$72=\"Zufuhr bis 99 Km\",VLOOKUP(E111,Mietpreise!$A:$H,6,0),IF($F$72=\"Zufuhr ab 100 Km\",VLOOKUP(E111,Mietpreise!$A:$H,8,0)))","v":20}]
[null,null,null,"Spülwanne zweiteilig",6005,{"$f":"IF($F$72=\"Zufuhr bis 99 Km\",VLOOKUP(E112,Mietpreise!$A:$H,6,0),IF($F$72=\"Zufuhr ab 100 Km\",VLOOKUP(E112,Mietpreise!$A:$H,8,0)))","v":20}]
[null,null,null,"Zapfanlage",6045,{"$f":"IF($F$72=\"Zufuhr bis 99 Km\",VLOOKUP(E113,Mietpreise!$A:$H,6,0),IF($F$72=\"Zufuhr ab 100 Km\",VLOOKUP(E113,Mietpreise!$A:$H,8,0)))","v":30}]
[null,null,null,"Klapp-Stehtisch",6100,{"$f":"IF($F$72=\"Zufuhr bis 99 Km\",VLOOKUP(E114,Mietpreise!$A:$H,6,0),IF($F$72=\"Zufuhr ab 100 Km\",VLOOKUP(E114,Mietpreise!$A:$H,8,0)))","v":12}]
[null,null,null,"Sonnenschirm 2 m mit Fuß",6022,{"$f":"IF($F$72=\"Zufuhr bis 99 Km\",VLOOKUP(E115,Mietpreise!$A:$H,6,0),IF($F$72=\"Zufuhr ab 100 Km\",VLOOKUP(E115,Mietpreise!$A:$H,8,0)))","v":8}]
[null,null,null,"Sonnenschirm 3 m mit Fuß",6023,{"$f":"IF($F$72=\"Zufuhr bis 99 Km\",VLOOKUP(E116,Mietpreise!$A:$H,6,0),IF($F$72=\"Zufuhr ab 100 Km\",VLOOKUP(E116,Mietpreise!$A:$H,8,0)))","v":15}]
[null,null,null,"Serviertablett",6006,{"$f":"IF($F$72=\"Zufuhr bis 99 Km\",VLOOKUP(E117,Mietpreise!$A:$H,6,0),IF($F$72=\"Zufuhr ab 100 Km\",VLOOKUP(E117,Mietpreise!$A:$H,8,0)))","v":0}]
[null,null,null,"Preistafel",6009,{"$f":"IF($F$72=\"Zufuhr bis 99 Km\",VLOOKUP(E118,Mietpreise!$A:$H,6,0),IF($F$72=\"Zufuhr ab 100 Km\",VLOOKUP(E118,Mietpreise!$A:$H,8,0)))","v":0}]
[null,null,null,"Pfandmarken",6010,{"$f":"IF($F$72=\"Zufuhr bis 99 Km\",VLOOKUP(E119,Mietpreise!$A:$H,6,0),IF($F$72=\"Zufuhr ab 100 Km\",VLOOKUP(E119,Mietpreise!$A:$H,8,0)))","v":0}]
[null,null,null,"Fürstenberg Fahne",6040,{"$f":"IF($F$72=\"Zufuhr bis 99 Km\",VLOOKUP(E120,Mietpreise!$A:$H,6,0),IF($F$72=\"Zufuhr ab 100 Km\",VLOOKUP(E120,Mietpreise!$A:$H,8,0)))","v":0}]
[null,null,null,"Spanntransparent (Spruchband)",6058,{"$f":"IF($F$72=\"Zufuhr bis 99 Km\",VLOOKUP(E121,Mietpreise!$A:$H,6,0),IF($F$72=\"Zufuhr ab 100 Km\",VLOOKUP(E121,Mietpreise!$A:$H,8,0)))","v":0}]
[null,null,null,"Bauzaunbanner",6158,{"$f":"IF($F$72=\"Zufuhr bis 99 Km\",VLOOKUP(E122,Mietpreise!$A:$H,6,0),IF($F$72=\"Zufuhr ab 100 Km\",VLOOKUP(E122,Mietpreise!$A:$H,8,0)))","v":0}]
[null,null,null,"Flaschenöffner",6032,{"$f":"IF($F$72=\"Zufuhr bis 99 Km\",VLOOKUP(E123,Mietpreise!$A:$H,6,0),IF($F$72=\"Zufuhr ab 100 Km\",VLOOKUP(E123,Mietpreise!$A:$H,8,0)))","v":0}]
[null,null,null,"Thekenleuchte FFB",6027,{"$f":"IF($F$72=\"Zufuhr bis 99 Km\",VLOOKUP(E124,Mietpreise!$A:$H,6,0),IF($F$72=\"Zufuhr ab 100 Km\",VLOOKUP(E124,Mietpreise!$A:$H,8,0)))","v":0}]
[null,null,null,"Spirituosendosierer",6616,{"$f":"IF($F$72=\"Zufuhr bis 99 Km\",VLOOKUP(E125,Mietpreise!$A:$H,6,0),IF($F$72=\"Zufuhr ab 100 Km\",VLOOKUP(E125,Mietpreise!$A:$H,8,0)))","v":1}]
[null,null,null,"Spirituosenspender 1,0 l",6608,{"$f":"IF($F$72=\"Zufuhr bis 99 Km\",VLOOKUP(E126,Mietpreise!$A:$H,6,0),IF($F$72=\"Zufuhr ab 100 Km\",VLOOKUP(E126,Mietpreise!$A:$H,8,0)))","v":0}]
[null,null,null,"Spirituosenspender 3,0 l",6609,{"$f":"IF($F$72=\"Zufuhr bis 99 Km\",VLOOKUP(E127,Mietpreise!$A:$H,6,0),IF($F$72=\"Zufuhr ab 100 Km\",VLOOKUP(E127,Mietpreise!$A:$H,8,0)))","v":0}]
[null,null,null,"Glühweinkocher 27 l",6620,{"$f":"IF($F$72=\"Zufuhr bis 99 Km\",VLOOKUP(E128,Mietpreise!$A:$H,6,0),IF($F$72=\"Zufuhr ab 100 Km\",VLOOKUP(E128,Mietpreise!$A:$H,8,0)))","v":70}]
[null,null,null,null,null,null,null,null,"Summe:",{"$f":"VLOOKUP($I$129,Summen!$C:$D,2,0)","v":0}]
[]
[null,null,"Kühlwägen + Ausschankwägen"]
[]
[]
[]
[null,null,null,null,"Artikelnummer","Mietpreis","Anzahl"]
[]
[null,null,null,"Kühlwagen groß  (12 Palettenstellplätze)",6247,{"$f":"IF($F$72=\"Zufuhr bis 99 Km\",VLOOKUP(E137,Mietpreise!$A:$H,6,0),IF($F$72=\"Zufuhr ab 100 Km\",VLOOKUP(E137,Mietpreise!$A:$H,8,0)))","v":350}]
[null,null,null,"Kühlwagen klein (6 Palettenstellplätze)",6347,{"$f":"IF($F$72=\"Zufuhr bis 99 Km\",VLOOKUP(E138,Mietpreise!$A:$H,6,0),IF($F$72=\"Zufuhr ab 100 Km\",VLOOKUP(E138,Mietpreise!$A:$H,8,0)))","v":300}]
[null,null,null,"Kühlschrank",6028,{"$f":"IF($F$72=\"Zufuhr bis 99 Km\",VLOOKUP(E139,Mietpreise!$A:$H,6,0),IF($F$72=\"Zufuhr ab 100 Km\",VLOOKUP(E139,Mietpreise!$A:$H,8,0)))","v":30}]
[null,null,null,"Ausschankwagen groß 4 Zapfhähne ",6166,{"$f":"IF($F$72=\"Zufuhr bis 99 Km\",VLOOKUP(E140,Mietpreise!$A:$H,6,0),IF($F$72=\"Zufuhr ab 100 Km\",VLOOKUP(E140,Mietpreise!$A:$H,8,0)))","v":390}]
[null,null,null,"Ausschankwagen klein 2 Zapfhähne  ",6090,{"$f":"IF($F$72=\"Zufuhr bis 99 Km\",VLOOKUP(E141,Mietpreise!$A:$H,6,0),IF($F$72=\"Zufuhr ab 100 Km\",VLOOKUP(E141,Mietpreise!$A:$H,8,0)))","v":250}]
[]
[null,null,null,null,null,null,null,null,"Summe:",{"$f":"VLOOKUP($I$143,Summen!$E:$F,2,0)","v":0}]
[null,null,null,null,null,null,null,null,null,null,null,"Preis Equipment gesamt:",null,{"$f":"SUM(J143+J129+J99)","v":0}]

{"sheet":"Getränkevorauswahl","index":1,"n_rows":302,"n_cols":7,"rows_kept":302,"cut":false,"hidden":false,"merged":[[250,3,250,4],[264,3,264,4],[0,2,5,7],[7,3,7,4],[9,2,15,2],[196,3,196,4],[196,5,196,6],[238,3,238,4]]}
[null,null,"Geränkevorauswahl Veranstaltungen"]
[]
[]
[]
[]
[]
[null,null,"Die Mengen der Getränke werden mit einem Außendienstmitarbeiter abgestimmt"]
[null,null,null,"Alkoholfreie Getränke"]
[]
[null,null,null,"Art.-Nr.","Beschreibung","Flaschen","Inhalt"]
[null,null,null,54876,"Afri Cola",24,"0,33 L"]
[null,null,null,54878,"Afri Cola PET",12,"0,50 L"]
[null,null,null,54879,"Afri Cola PET",12,"1,00 L"]
[null,null,null,54890,"Afri Cola ohne Zucker",24,"0,33 L"]
[null,null,null,54891,"Afri Cola ohne Zucker",20,"0,50 L"]
[null,null,null,54892,"Afri Cola ohne Zucker PET",12,"0,50 L"]
[null,null,null,54845,"Bluna Zitrone PET",12,"1,00 L"]
[null,null,null,54849,"Bluna Cola Mix",24,"0,33 L"]
[null,null,null,54851,"Bluna Cola Mix PET",12,"0,50 L"]
[null,null,null,54862,"Bluna Orange",24,"0,33 L"]
[null,null,null,54864,"Bluna Orange PET",12,"0,50 L"]
[null,null,null,54865,"Bluna Orange PET",12,"1,00 L"]
[]
[null,null,null,54496,"Lindauer Ananassaft 100% ",6,"1,00 L"]
[null,null,null,54489,"Lindauer Johannisbeernekt.",6,"1,00 L"]
[null,null,null,54450,"Lindauer Maracujanektar   ",6,"1,00 L"]
[null,null,null,54486,"Lindauer Orangensaft 100% ",6,"1,00 L"]
[null,null,null,54451,"Lindauer Sauerkirschnektar",6,"1,00 L"]
[]
[null,null,null,53329,"Bad Dürrheimer Apfelschorle",12,"0,50 L"]
[null,null,null,53353,"Bad Dürrheimer Apfelschorle PET",20,"0,50 L"]
[null,null,null,53424,"Bad Dürrheimer Bio Classic",12,"0,50 L"]
[null,null,null,53714,"Bad Dürrheimer Bio Classic",12,"0,75 L"]
[null,null,null,53429,"Bad Dürrheimer Bio Classic (blaue Flasche)",24,"0,25 L"]
[null,null,null,53425,"Bad Dürrheimer Bio Classic (blaue Flasche)",20,"0,50 L"]
[null,null,null,53428,"Bad Dürrheimer Bio Classic (blaue Flasche)",12,"0,75 L"]
[null,null,null,53432,"Bad Dürrheimer Bio Medium (blaue Flasche)",24,"0,25 L"]
[null,null,null,53435,"Bad Dürrheimer Bio Medium (blaue Flasche)",20,"0,50 L"]
[null,null,null,53438,"Bad Dürrheimer Bio Medium (blaue Flasche)",12,"0,75 L"]
[null,null,null,53459,"Bad Dürrheimer Bio Naturell (blaue Flasche)",20,"0,50 L"]
[null,null,null,53458,"Bad Dürrheimer Bio Naturell (blaue Flasche)",24,"0,25 L"]
[null,null,null,53460,"Bad Dürrheimer Bio Naturell (blaue Flasche)",12,"0,75 L"]
[null,null,null,53350,"Bad Dürrheimer Bio Classic PET",20,"0,50 L"]
[null,null,null,53430,"Bad Dürrheimer Bio Classic PET",9,"1,00 L"]
[null,null,null,53326,"Bad Dürrheimer Cola Mix",12,"0,50 L"]
[null,null,null,53343,"Bad Dürrheimer Cola Mix PET",20,"0,50 L"]
[null,null,null,53434,"Bad Dürrheimer Bio Medium",12,"0,50 L"]
[null,null,null,53715,"Bad Dürrheimer Bio Medium",12,"0,75 L"]
[null,null,null,53351,"Bad Dürrheimer Bio Medium PET",20,"0,50 L"]
[null,null,null,53431,"Bad Dürrheimer Bio Medium PET",9,"1,00 L"]
[null,null,null,53735,"Bad Dürrheimer Bio Naturell",12,"0,75 L"]
[null,null,null,53352,"Bad Dürrheimer Bio Naturell PET",20,"0,50 L"]
[null,null,null,55497,"Bad Dürrheimer Holunderblüte",12,"0,50 L"]
[null,null,null,55499,"Bad Dürrheimer Holunderblüte PET",20,"0,50 L"]
[null,null,null,53451,"Bad Dürrheimer Schwarze Johannisbeere",12,"0,50 L"]
[null,null,null,53453,"Bad Dürrheimer Schwarze Johannisbeere PET",13,"0,50 L"]
[null,null,null,53567,"Bad Dürrheimer Sportiv",12,"0,50 L"]
[null,null,null,55444,"Bad Dürrheimer Citro Limo",12,"0,50 L"]
[null,null,null,53334,"Bad Dürrheimer Citro Limo",12,"0,70 L"]
[null,null,null,53439,"Wittmannsthal Classic",12,"0,70 L"]
[null,null,null,53440,"Wittmannsthal Classic PET",9,"1,00 L"]
[]
[null,null,null,54802,"Bionade Holunder",24,"0,33 L"]
[null,null,null,54803,"Bionade Ingwer-Orange",24,"0,33 L"]
[null,null,null,54800,"Bionade Kräuter",24,"0,33 L"]
[null,null,null,54801,"Bionade Litschi",24,"0,33 L"]
[]
[null,null,null,50034,"Coca-Cola",24,"0,33 L"]
[null,null,null,53816,"Coca-Cola light PEW MW",12,"0,50 L"]
[null,null,null,50064,"Coca-Cola light",24,"0,33 L"]
[null,null,null,50043,"Coca-Cola Zero",24,"0,33 L"]
[null,null,null,50154,"Fanta Orange",24,"0,33 L"]
[null,null,null,53819,"Fanta Orange PEW MW",12,"0,50 L"]
[null,null,null,50171,"Fanta Orange PET",12,"1,00 L"]
[null,null,null,50334,"Mezzo Mix",24,"0,33 L"]
[null,null,null,53820,"Mezzo Mix PEW MW",12,"0,50 L"]
[null,null,null,50304,"Sprite",24,"0,33 L"]
[null,null,null,50316,"Sprite PET",12,"1,00 L"]
[null,null,null,53821,"Sprite PEW MW",12,"0,50 L"]
[null,null,null,50420,"Fuze Tea Pfirsich",24,"0,30 L"]
[null,null,null,50421,"Fuze Tea Zitrone",24,"0,30 L"]
[]
[null,null,null,54005,"Red Bull Dose bepfandet",24,"0,25 L"]
[null,null,null,55507,"Hausmarke Energy Drink (Jokes) PET",9,"1,00 L"]
[]
[null,null,null,54388,"Ensinger Apfelschorle DS Gourmet",24,"0,25 L"]
[null,null,null,54380,"Ensinger Apfelschorle DS PET",11,"0,50 L"]
[null,null,null,54375,"Ensinger Apfel-Johannisbeerschorle Gourmet",24,"0,25 L"]
[null,null,null,54393,"Ensinger Apfel-Johannisbeerschorle PET",11,"0,50 L"]
[null,null,null,54385,"Ensinger Bio Classic Gourmet",24,"0,25 L"]
[null,null,null,54412,"Ensinger Bio Classic Gourmet",20,"0,50 L"]
[null,null,null,54362,"Ensinger Bio Classic Gourmet",12,"0,75 L"]
[null,null,null,54341,"Ensinger Sport Classic",12,"0,50 L"]
[null,null,null,54370,"Ensinger Sport Classic PET",11,"0,50 L"]
[null,null,null,54386,"Ensinger Bio Medium Gourmet",24,"0,25 L"]
[null,null,null,54418,"Ensinger Bio Medium Gourmet",20,"0,50 L"]
[null,null,null,53462,"Ensinger Bio Medium Gourmet",12,"0,75 L"]
[null,null,null,54345,"Ensinger Sport medium",12,"0,50 L"]
[null,null,null,54383,"Ensinger Sport medium PET",11,"0,50 L"]
[null,null,null,54387,"Ensinger Bio Still Gourmet",24,"0,25 L"]
[null,null,null,54413,"Ensinger Bio Still Gourmet 20/050",20,"0,50 L"]
[null,null,null,54379,"Ensinger Bio Still Gourmet",12,"0,75 L"]
[null,null,null,54384,"Ensinger Sport still PET",11,"0,50 L"]
[]
[null,null,null,54478,"Elephant Bay Ice Tea Green Tea Honey",20,"0,33 L"]
[null,null,null,54493,"Elephant Bay Ice Tea Passionsfrucht",20,"0,33 L"]
[null,null,null,54640,"Elephant Bay IceTea Pome Granate",20,"0,33 L"]
[null,null,null,54641,"Elephant Bay IceTea Peach",20,"0,33 L"]
[null,null,null,54642,"Elephant Bay IceTea Lemon",20,"0,33 L"]
[null,null,null,54649,"Elephant Bay IceTea Raspbery",20,"0,33 L"]
[null,null,null,54650,"Elephant Bay IceTea Bluebery",20,"0,33 L"]
[null,null,null,54672,"Elephant Bay IceTea Melone",20,"0,33 L"]
[]
[null,null,null,54405,"Fever Tree Mediteran Tonic Water",24,"0,20 L"]
[null,null,null,54427,"Fever Tree Dry Tonic Water",24,"0,20 L"]
[null,null,null,54942,"Fever Tree Indian Tonic",24,"0,20 L"]
[null,null,null,55467,"Fever Tree Elderflower Tonic",24,"0,20 L"]
[null,null,null,55468,"Fever Tree Ginger Beer",24,"0,20 L"]
[null,null,null,55476,"Fever Tree Premium Wild Berry",6,"0,75 L"]
[]
[null,null,null,54293,"Fritz Bio Apfelsaftschorle",24,"0,33 L"]
[null,null,null,54302,"Fritz Bio Rhabarbersaftschorle",24,"0,33 L"]
[null,null,null,54305,"Fritz Bio Traubensaftschorle",24,"0,33 L"]
[null,null,null,54337,"Fritz-Kola",24,"0,33 L"]
[null,null,null,54295,"Fritz-Kola MischMasch",24,"0,33 L"]
[null,null,null,54291,"Fritz-Kola zuckerfrei",24,"0,33 L"]
[null,null,null,54298,"Fritz-Limo Apfel-kirsch-holunder",24,"0,33 L"]
[null,null,null,54289,"Fritz-Limo Orangenlimonade",24,"0,33 L"]
[null,null,null,54290,"Fritz-Limo Zitronenlimonade",24,"0,33 L"]
[]
[null,null,"Kühlwägen + Ausschankwägen",null,"Teinacher Genuss Limo Johannisbeere-Holunder ",12,"0,33 L"]
[null,null,null,54139,"Teinacher Genuss Limo Mango Maracuja Orange ",12,"0,33 L"]
[null,null,null,54138,"Teinacher Genuss Limo Orange Mandarine ",12,"0,33 L"]
[null,null,null,54140,"Teinacher Genuss Limo Rhabarber Mirabelle ",12,"0,33 L"]
[]
[null,null,null,10340,"PA Spezi",24,"0,33 L"]
[null,null,null,"Kühlwagen groß  (12 Palettenstellplätze)","PA Spezi",20,"0,50 L"]
[null,null,null,"Kühlwagen klein (6 Palettenstellplätze)","PA Spezi Zero",24,"0,33 L"]
[null,null,null,53933,"PA Spezi Zero",20,"0,50 L"]
[null,null,null,"Ausschankwagen groß 4 Zapfhähne "]
[null,null,null,"Ausschankwagen klein 2 Zapfhähne  ","Randegger Apfel-Schorle",12,"0,70 L"]
[null,null,null,54171,"Randegger Classic",12,"0,50 L"]
[null,null,null,54170,"Randegger Classic",12,"0,70 L"]
[null,null,null,54183,"Randegger Classic (grüne Fl.)",20,"0,25 L"]
[null,null,null,54182,"Randegger Cola Mix",12,"0,50 L"]
[null,null,null,54177,"Randegger Cola-Mix",12,"0,70 L"]
[null,null,null,54174,"Randegger Gourmet",20,"0,25 L"]
[null,null,null,54184,"Randegger Gourmet",12,"0,50 L"]
[null,null,null,54173,"Randegger Gourmet",12,"0,75 L"]
[null,null,null,54185,"Randegger Gourmet Naturelle",20,"0,25 L"]
[null,null,null,54186,"Randegger Gourmet Naturelle",12,"0,50 L"]
[null,null,null,54178,"Randegger Gourmet Naturelle",12,"0,75 L"]
[null,null,null,54179,"Randegger ISO-fit",12,"0,50 L"]
[null,null,null,54172,"Randegger Leicht",12,"0,70 L"]
[null,null,null,54181,"Randegger Leicht",12,"0,50 L"]
[null,null,null,54166,"Randegger Naturelle",12,"0,70 L"]
[null,null,null,54175,"Randegger Zitrone-Limo",12,"0,70 L"]
[]
[null,null,null,54822,"San Pellegrino",24,"0,25 L"]
[null,null,null,54824,"San Pellegrino",20,"0,50 L"]
[null,null,null,54833,"San Pellegrino",16,"0,75 L"]
[null,null,null,54820,"San Pellegrino",12,"1,00 L"]
[null,null,null,54823,"San Pellegrino Panna",24,"0,25 L"]
[null,null,null,54825,"San Pellegrino Panna",20,"0,50 L"]
[null,null,null,54834,"San Pellegrino Panna",16,"0,75 L"]
[null,null,null,54821,"San Pellegrino Panna",12,"1,00 L"]
[null,null,null,54758,"\nSan Pellegrino Sanbitter EW",24,"0,098 L"]
[]
[null,null,null,54098,"Orangina",15,"0,25 L"]
[null,null,null,54099,"Orangina Rouge",15,"0,25 L"]
[null,null,null,54472,"Schweppes Bitter Lemon",24,"0,20 L"]
[null,null,null,54482,"Schweppes Bitter Lemon PET",6,"1,00 L"]
[null,null,null,54474,"Schweppes Ginger Ale",24,"0,20 L"]
[null,null,null,54484,"Schweppes Ginger Ale PET",6,"1,00 L"]
[null,null,null,54473,"Schweppes Tonic Water",24,"0,20 L"]
[null,null,null,54483,"Schweppes Tonic Water PET",6,"1,00 L"]
[null,null,null,54485,"Schweppes Wild Berry",24,"0,20 L"]
[null,null,null,54468,"Schweppes Wild Berry",6,"1,00 L"]
[]
[null,null,null,54765,"Thomas Henry Spicy Ginger",24,"0,20 L"]
[null,null,null,54766,"Thomas Henry Bitter Lemon",24,"0,20 L"]
[null,null,null,54767,"Thomas Henry Tonic",24,"0,20 L"]
[null,null,null,54768,"Thomas Henry Ginger Ale",24,"0,20 L"]
[null,null,null,55465,"Thomas Henry Pink Grapefruit",24,"0,20 L"]
[null,null,null,55485,"Thomas Henry mystic Mango",24,"0,20 L"]
[null,null,null,54425,"Thomas Henry Botanical Tonic PET",6,"1,00 L"]
[null,null,null,54837,"Thomas Henry Tonic Water PET",6,"1,00 L"]
[null,null,null,55447,"Thomas Henry Spicy Ginger PET",6,"1,00 L"]
[null,null,null,55458,"Thomas Henry Bitter Lemon PET",6,"1,00 L"]
[null,null,null,55459,"Thomas Henry Ginger Ale PET",6,"1,00 L"]
[]
[null,null,null,54560,"Trade Islands Pomegrananate",24,"0,33 L"]
[null,null,null,54561,"Trade Islands Peach",24,"0,33 L"]
[null,null,null,54562,"Trade Islands Lemon&Lime",24,"0,33 L"]
[null,null,null,54563,"Trade Islands MintnLime",24,"0,33 L"]
[]
[null,null,null,"Biersortiment"]
[]
[null,null,null,3000032," Fürstenberg Premium Pilsener KEG",1,"30,00 L"]
[null,null,null,3000052," Fürstenberg Premium Pilsener KEG",1,"50,00 L"]
[null,null,null,3001033," Fürstenberg Premium Pilsener",20,"0,33 L"]
[null,null,null,3001011," Fürstenberg Premium Pilsener",20,"0,50 L"]
[null,null,null,3001074," Fürstenberg Pils 0,0 % Alkoholfrei",20,"0,33 L"]
[null,null,null,3001071," Fürstenberg Pils 0,0 % Alkoholfrei",20,"0,50 L"]
[null,null,null,3001063," Fürstenberg Export",20,"0,33 L"]
[null,null,null,3001061," Fürstenberg Export",20,"0,50 L"]
[null,null,null,3000132," Fürstenberg Export KEG",1,"30,00 L"]
[null,null,null,3000152," Fürstenberg Export KEG",1,"50,00 L"]
[null,null,null,3001905," Fürstenberg Hefeweizen Dunkel",20,"0,50 L"]
[null,null,null,3001904," Fürstenberg Hefeweizen Hell",20,"0,50 L"]
[null,null,null,3000432," Fürstenberg Hefeweizen Hell KEG",1,"30,00 L"]
[null,null,null,3000452," Fürstenberg Hefeweizen Hell KEG",1,"50,00 L"]
[null,null,null,3001903," Fürstenberg Kristallweizen",20,"0,50 L"]
[null,null,null,3000150," Fürstenberg Helles naturtrüb 30l KEG",1,"30,00 L"]
[null,null,null,3001077," Fürstenberg Helles naturtrüb ",20,"0,33 L"]
[null,null,null,3001097," Fürstenberg Natur-Radler",20,"0,33 L"]
[null,null,null,3001098," Fürstenberg Natur-Radler 0,0%",20,"0,33 L"]
[null,null,null,3002675," Fürstenberg Zitrus Radler 0,0% alkoholfrei",20,"0,33 L"]
[]
[null,null,null,14199,"Paulaner Hefe-Weißbier Naturtrüb",24,"0,33 L"]
[null,null,null,14196,"Paulaner Hefe-Weißbier Naturtrüb",20,"0,50 L"]
[null,null,null,10096,"Paulaner Hefe-Weißbier Naturtrüb",1,"30,00 L"]
[null,null,null,14191,"Paulaner Hefe-Weißbier Alkoholfrei",20,"0,50 L"]
[null,null,null,14291,"Paulaner Weißbier 0,0%",20,"0,50 L"]
[null,null,null,14197,"Paulaner Hefe-Weißbier Dunkel",20,"0,50 L"]
[null,null,null,14120,"Paulaner Münchner Dunkel",20,"0,50 L"]
[null,null,null,10024,"Paulaner Ur-Dunkel Natürtrüb",1,"30,00 L"]
[null,null,null,13110,"Paulaner Münchner Hell Euroflasche",20,"0,50 L"]
[]
[null,null,null,3002011," Riegeler Felsen Pils",20,"0,50 L"]
[null,null,null,3002032," Riegeler Felsen Pils KEG",1,"30,00 L"]
[null,null,null,3002052," Riegeler Felsen Pils KEG",1,"50,00 L"]
[null,null,null,3002084," Riegeler Landbier Bügelflasche",20,"0,50 L"]
[null,null,null,3002089," Riegeler Landbier KEG",1,"30,00 L"]
[null,null,null,3002061," Riegeler Spezial Export",20,"0,50 L"]
[null,null,null,3002132," Riegeler Spezial Export KEG",1,"30,00 L"]
[null,null,null,3002152," Riegeler Spezial Export KEG",1,"50,00 L"]
[]
[null,null,null,"Weine"]
[]
[null,null,null,53624,"Acht Grad Weinsch.rose",12,"0,275 L"]
[null,null,null,53623,"Acht Grad Weinsch.weiß",12,"0,275 L"]
[null,null,null,53008,"Auggener Gutedel Qu tro.",6,"1,00 L"]
[null,null,null,53000,"Durbacher Riesling tro.",6,"1,00 L"]
[null,null,null,53060,"Kiechlin. Spätb. Rot tro.",6,"1,00 L"]
[null,null,null,53006,"Kiechlinsb. Mül.-Th.Qu tr.",6,"1,00 L"]
[null,null,null,53101,"Kiechlinsb. Weissherbst Qu",6,"1,00 L"]
[null,null,null,53026,"Oberbergen. Mül.-Th.Qu tr.",6,"1,00 L"]
[null,null,null,53516,"Oberkircher Rose fruchtig",6,"0,75 L"]
[]
[null,null,null,"Sekte"]
[]
[null,null,null,53418,"Schloss Koblenz Sekt trocken Alkoholfrei",6,"0,75 L"]
[null,null,null,53186,"Freixenet Sekt",6,"0,75 L"]
[null,null,null,53299,"Freixenet Sekt trocken",6,"0,75 L"]
[null,null,null,53179,"Geldermann Carte Blanche",6,"0,75 L"]
[null,null,null,53290,"Geldermann Rosé",6,"0,75 L"]
[null,null,null,53198,"Geldermann Brut",6,"0,75 L"]
[null,null,null,53182,"Schloß Affaltrach Brilliant",6,"0,75 L"]
[null,null,null,53395,"Schloss Koblenz Sekt trocken",6,"0,75 L"]
[null,null,null,53181,"Superb Sekt trocken",6,"0,75 L"]
[null,null,null,55512,"Le Contesse Frizzante Marca Trevigiana",6,"0,75 L"]
[null,null,null,53426,"Zonin Prosecco",6,"0,75 L"]
[]
[null,null,null,"Spirituosen"]
[]
[null,null,null,53481,"Aperol Bitter 11 %",1,"1,00 L"]
[null,null,null,53217,"Asbach",1,"1,00 L"]
[null,null,null,53204,"Bacardi",1,"1,00 L"]
[null,null,null,53206,"Bailey´s",1,"1,00 L"]
[null,null,null,53562,"Bombay Sapphire 47 %",1,"1,00 L"]
[null,null,null,53216,"Campari",1,"1,00 L"]
[null,null,null,53507,"Captain Morgan Spiced",1,"0,70 L"]
[null,null,null,54977,"Ficken Liquors",20,"0,02 L"]
[null,null,null,53479,"Ficken Liquors",1,"0,70 L"]
[null,null,null,54978,"Gordon´s Gin 37,5%",1,"1,00 L"]
[null,null,null,54980,"Havanna Club 3Years",1,"1,00 L"]
[null,null,null,53566,"Hendricks Gin 44%",1,"0,70 L"]
[null,null,null,53205,"Jack Daniels",1,"1,00 L"]
[null,null,null,53247,"Jägermeister",24,"0,02 L"]
[null,null,null,53208,"Jägermeister",1,"1,00 L"]
[null,null,null,53561,"Jim Beam",1,"1,00 L"]
[null,null,null,53098,"Lillet Blanc 17%",1,"0,75 L"]
[null,null,null,53349,"Linie Aquavit 41,5%",1,"0,70 L"]
[null,null,null,53241,"Malibu",1,"0,70 L"]
[null,null,null,53521,"Martini Bianco (weiss)",1,"1,00 L"]
[null,null,null,53265,"Martini Rosso (Rot)",1,"0,75 L"]
[null,null,null,53215,"Ouzo 12 38%",1,"0,70 L"]
[null,null,null,53209,"Pitu Cachaca",1,"1,00 L"]
[null,null,null,53774,"Ramazotti Crema",1,"0,70 L"]
[null,null,null,55455,"Ramazzotti Rosato",1,"0,70 L"]
[null,null,null,53207,"Ramazotti",1,"1,00 L"]
[null,null,null,53511,"Sambuca Molinari 40 %",1,"1,00 L"]
[null,null,null,55520,"Szene Daiquiri Erdbeere 20%",1,"1,00 L"]
[null,null,null,55537,"Hausmarke Kirschwasser",1,"1,00 L"]
[null,null,null,55538,"Hausmarke Obstwasser",1,"1,00 L"]
[null,null,null,55470,"Hausmarke Pfefferminze (Exquisit) 20%",1,"1,00 L"]
[null,null,null,55472,"Hausmarke Sambuca (Bussoni) 40%",1,"1,00 L"]
[null,null,null,55473,"Hausmarke Tequila Silber 35%",1,"1,00 L"]
[null,null,null,55474,"Hausmarke Tequila Gold 35%",1,"1,00 L"]
[null,null,null,55471,"Hausmarke Williamsbrand (Weis) 40%",1,"1,00 L"]
[null,null,null,55462,"Hausmarke Vodka Nasdorowitch 37,5%",1,"1,00 L"]

{"sheet":"Dropdownliste","index":2,"n_rows":8,"n_cols":2,"rows_kept":8,"cut":false,"hidden":false,"merged":[]}
[]
[null,"Geburtstag"]
["Zufuhr bis 99 Km","Polerabend"]
["Zufuhr ab 100 Km","Hochzeit"]
[null,"Firmenfeier"]
[null,"Vereinsfest"]
[null,"Stadtfest"]
[null,"Sonstiges"]

{"sheet":"Mietpreise","index":3,"n_rows":77,"n_cols":8,"rows_kept":77,"cut":false,"hidden":false,"merged":[]}
["Preise Festmöbel ab 2022",null,null,null,"Zufuhr\nbis 99km","Gesamt Kosten ","Zufuhr\nab 100km","Gesamt Kosten\n"]
["Artikel","Art des Gegenstandes","Mietpeis*","interne\nKosten*","Fracht Zone1","Fracht Zone 1","Fracht Zone2","Fracht Zone\n 2"]
[]
[6001,"Festplatztisch",1,2,1.5,{"$f":"SUM(C4,+E4,)","v":2.5},2,{"$f":"SUM(C4,+G4,)","v":3}]
[6002,"Festplatzbank",0.5,0.75,0.75,1.25,0.75,1.25]
[6100,"Klapp Stehtisch",6,7.5,6,12,7.5,13.5]
[6101,"Stehtisch-Transportpalette",0,0,0,0,0,0]
[6116,"Gitterboxen für Festmöbel",0,null,0,0,0,0]
[6619,"Bartheke NEU 1,20 mtr.",8,17,12,20,17,25]
[6004,"Theke-Edelstahl BLAU",8,17,12,20,17,25]
[6177,"FB Biertisch-Schürzen",2,3,2,4,3,5]
[6044,"Möbelcontainer",0,0,0,0,0,0]
[6005,"Spülwanne zweiteilig",8,17,12,20,17,25]
[6031,"Gläserbürste 3fach",0,0,0,0,0,0]
[6022,"FB Sonnenschirm mit Fuß",4,6,4,8,6,10]
[6023,"FB Sonnenschirm 3,50m mit Fuß",7.5,10,7.5,15,10,17.5]
[6209,"Gehwegplatten 40 x 40 x 4,2 cm",0,0,0,0,0,0]
[6247,"Kühlwagen / VS-",180,195,170,350,195,375]
[6347,"Kühlwagen / Tandem / VS-",150,200,150,300,200,350]
[6148,"Kühl-Container",0,375,350,350,375,375]
[6166,"ASW Premium / VS-",200,225,190,390,225,425]
[6167,"ASW Plazale / VS-",200,225,190,390,225,425]
[6090,"ASW-Strand / VS-",130,145,120,250,145,275]
[6079,"Bierkühler / Unterthekengerät",15,20,15,30,20,35]
[6080,"Zapfstelle 1-leitig",0,0,0,0,0,0]
[6180,"Zapfstelle 2-leitig",0,0,0,0,0,0]
[6045,"Bierpremix",15,20,15,30,20,35]
[6046,"AFG-Premix",15,20,15,30,20,35]
[6028,"FB Kühlschrank",15,20,15,30,20,35]
[6029,"FB Kühltruhe",15,20,15,30,20,35]
[6006,"Serviertablett Fürstenberg",0,0,0,0,0,0]
[6009,"Preistafel Fürstenberg",0,0,0,0,0,0]
[6010,"Biermarken/100 St. pro Pack",0,0,0,0,0,0]
[6032,"Flaschenöffner vern.",0,0,0,0,0,0]
[6034,"Festanstich komplett",0,0,0,0,0,0]
[6027,"FB Thekenleuchte",0,0,0,{"$f":"SUM(C36,+E36,)","v":0},0,{"$f":"SUM(C36,+G36,)","v":0}]
[6040,"Fahne              2,50m x 1,0m",0,0,0,0,0,0]
[6058,"FB Spanntransparent 3,50m x 1,0m",0,0,0,0,0,0]
[6158,"FB Bauzaunbanner 3,40m x 1,75m",0,0,0,0,0,0]
[6070,"Bier-Container Anstich komplett",0,0,0,0,0,0]
[6136,"FB Bergamo Pokal 0,1l/36St/Korb",0,0,0,0,0,0]
[6012,"FB Bistro-Becher 0,25l/20St/Korb",0,0,0,0,0,0]
[6055,"FB Classic Pokal 0,3l/24St/Korb",0,0,0,0,0,0]
[6141,"FB Helles Glas 0,3L /20St./KS",0,0,0,0,0,0]
[6103,"Riegeler Bologna Tulpe 0,3l/24St./Korb",0,0,0,0,0,0]
[6013,"FB Krug 0,3l  / 18St. /Korb",0,0,0,0,0,0]
[6114,"FB Krug 0,4l  / 18St. /Korb",0,0,0,0,0,0]
[6215,"FB Krug 0,5l  / 15St. /Korb",0,0,0,0,0,0]
[6016,"FB Krug 1,0l  / 15St. /Korb",0,0,0,0,0,0]
[6059,"FB Weizenbierglas 0,3l/24St/Korb",0,0,0,0,0,0]
[6054,"FB Weizenbierglas 0,5l/24St/Korb",0,0,0,0,0,0]
[6607,"Stielglas Bad Dürrh. 0,2l 20St/Korb",0.05,0.05,0.05,0.1,0.05,0.1]
[6017,"Coca-Cola Glas 0,2l 20St/Korb",0,0,0,0,0,0]
[6018,"Coca-Cola Glas 0,3l 20St/Korb",0,0,0,0,0,0]
[6604,"Pfalzbecher 0,25 l   24St/Korb",0.05,0.05,0.05,0.1,0.05,0.1]
[6603,"Sektglas 0,1 l  40St/Korb",0.05,0.05,0.05,0.1,0.05,0.1]
[6605,"Weinpokal 0,25 l   24St/Korb",0.05,0.05,0.05,0.1,0.05,0.1]
[6600,"Schnapsglas 2cl  40St/Korb",0.05,0.05,0.05,0.1,0.05,0.1]
[6601,"Whiskyglas 2+4cl  24St/Korb",0.05,0.05,0.05,0.1,0.05,0.1]
[6602,"Longdrinkglas 0,2 l  24St/Korb",0.05,0.05,0.05,0.1,0.05,0.1]
[6612,"Caipirinha Glas 24St/Korb",0.05,0.05,0.05,0.1,0.05,0.1]
[6615,"Ramazzotti Glas 24St/Korb",0.05,0.05,0.05,0.1,0.05,0.1]
[6608,"Spirituosenspender 1,0 l",0,0,0,0,0,0]
[6616,"Flaschenausgießer Spirituosen",1,0,0,1,0,1]
[6609,"Spirituosenspender 3,0 l",0,0,0,0,0,0]
[6613,"Jägermeister Gerät",0,0,0,0,0,0]
[6611,"Daiquiri Gerät",18,18,18,36,18,36]
[6178,"BI Biertisch-Schürzen",2,3,2,{"$f":"SUM(C68,+E68,)","v":4},3,{"$f":"SUM(C68,+G68,)","v":5}]
[6076,"BI Sonnenschirm 3mtr",7.5,10,7.5,15,10,17.5]
[6182,"BI Bauzaunbanner 3,40m x 1,75m",0,0,0,0,0,0]
[6231,"BI Stümple Theke klappBAR",8,17,12,20,17,25]
[6232,"BI Stümple Eckelement 90° klappBAR",8,17,12,20,17,25]
[6128,"BI Kühlschrank",15,20,15,30,20,35]
[6233,"BI Stümple Transportwagen klappBAR",0,0,0,0,0,0]
[6232,"BI Stümple Eckelement 90° klappBAR",8,17,12,20,17,25]
[6620,"Glühweinkocher",70,null,0,70,0,70]
[6621,"Glühweinbecher",1.2,null,0,1.2,0,1.2]

{"sheet":"Summen","index":4,"n_rows":34,"n_cols":8,"rows_kept":34,"cut":false,"hidden":true,"merged":[]}
["Preise gesamt Gläser",null,"Preise gesamt Mobiliar",null,"Preis gesamt Kühlwägen"]
[6136,{"$f":"IFERROR(SUM(Veranstaltungsanfrage!F77*Veranstaltungsanfrage!G77,),\"\")","v":0},6001,{"$f":"IFERROR(SUM(Veranstaltungsanfrage!F107*Veranstaltungsanfrage!G107,),\"\")","v":0},6247,{"$f":"IFERROR(SUM(Veranstaltungsanfrage!F137*Veranstaltungsanfrage!G137),\"\")","v":0}]
[6012,{"$f":"IFERROR(SUM(Veranstaltungsanfrage!F78*Veranstaltungsanfrage!G78,),\"\")","v":0},6002,{"$f":"IFERROR(SUM(Veranstaltungsanfrage!F108*Veranstaltungsanfrage!G108,),\"\")","v":0},6347,{"$f":"IFERROR(SUM(Veranstaltungsanfrage!F138*Veranstaltungsanfrage!G138),\"\")","v":0}]
[6013,{"$f":"IFERROR(SUM(Veranstaltungsanfrage!F79*Veranstaltungsanfrage!G79,),\"\")","v":0},6177,{"$f":"IFERROR(SUM(Veranstaltungsanfrage!F109*Veranstaltungsanfrage!G109,),\"\")","v":0},6028,{"$f":"IFERROR(SUM(Veranstaltungsanfrage!F139*Veranstaltungsanfrage!G139),\"\")","v":0}]
[6114,{"$f":"IFERROR(SUM(Veranstaltungsanfrage!F80*Veranstaltungsanfrage!G80,),\"\")","v":0},6004,{"$f":"IFERROR(SUM(Veranstaltungsanfrage!F110*Veranstaltungsanfrage!G110,),\"\")","v":0},6166,{"$f":"IFERROR(SUM(Veranstaltungsanfrage!F140*Veranstaltungsanfrage!G140),\"\")","v":0}]
[6215,{"$f":"IFERROR(SUM(Veranstaltungsanfrage!F81*Veranstaltungsanfrage!G81,),\"\")","v":0},6610,{"$f":"IFERROR(SUM(Veranstaltungsanfrage!F111*Veranstaltungsanfrage!G111,),\"\")","v":0},6090,{"$f":"IFERROR(SUM(Veranstaltungsanfrage!F141*Veranstaltungsanfrage!G141),\"\")","v":0}]
[6141,{"$f":"IFERROR(SUM(Veranstaltungsanfrage!F82*Veranstaltungsanfrage!G82,),\"\")","v":0},6005,{"$f":"IFERROR(SUM(Veranstaltungsanfrage!F112*Veranstaltungsanfrage!G112,),\"\")","v":0},"Summe:",{"$f":"SUM(F2:F6)","v":0}]
[6016,{"$f":"IFERROR(SUM(Veranstaltungsanfrage!F83*Veranstaltungsanfrage!G83,),\"\")","v":0},6045,{"$f":"IFERROR(SUM(Veranstaltungsanfrage!F113*Veranstaltungsanfrage!G113,),\"\")","v":0}]
[6059,{"$f":"IFERROR(SUM(Veranstaltungsanfrage!F84*Veranstaltungsanfrage!G84,),\"\")","v":0},6100,{"$f":"IFERROR(SUM(Veranstaltungsanfrage!F114*Veranstaltungsanfrage!G114,),\"\")","v":0},null,{"$f":"IFERROR(SUM(Veranstaltungsanfrage!#REF!*Veranstaltungsanfrage!#REF!),\"\")","v":""}]
[6054,{"$f":"IFERROR(SUM(Veranstaltungsanfrage!F85*Veranstaltungsanfrage!G85,),\"\")","v":0},6022,{"$f":"IFERROR(SUM(Veranstaltungsanfrage!F115*Veranstaltungsanfrage!G115,),\"\")","v":0}]
[6055,{"$f":"IFERROR(SUM(Veranstaltungsanfrage!F86*Veranstaltungsanfrage!G86,),\"\")","v":0},6023,{"$f":"IFERROR(SUM(Veranstaltungsanfrage!F116*Veranstaltungsanfrage!G116,),\"\")","v":0},null,{"$f":"IFERROR(SUM(Veranstaltungsanfrage!#REF!*Veranstaltungsanfrage!#REF!),\"\")","v":""}]
[6017,{"$f":"IFERROR(SUM(Veranstaltungsanfrage!F87*Veranstaltungsanfrage!G87,),\"\")","v":0},6006,{"$f":"IFERROR(SUM(Veranstaltungsanfrage!F117*Veranstaltungsanfrage!G117,),\"\")","v":0},null,{"$f":"IFERROR(SUM(Veranstaltungsanfrage!#REF!*Veranstaltungsanfrage!#REF!),\"\")","v":""}]
[6018,{"$f":"IFERROR(SUM(Veranstaltungsanfrage!F88*Veranstaltungsanfrage!G88,),\"\")","v":0},6009,{"$f":"IFERROR(SUM(Veranstaltungsanfrage!F118*Veranstaltungsanfrage!G118,),\"\")","v":0},null,{"$f":"IFERROR(SUM(Veranstaltungsanfrage!#REF!*Veranstaltungsanfrage!#REF!),\"\")","v":""}]
[6604,{"$f":"IFERROR(SUM(Veranstaltungsanfrage!F89*Veranstaltungsanfrage!G89,),\"\")","v":0},6010,{"$f":"IFERROR(SUM(Veranstaltungsanfrage!F119*Veranstaltungsanfrage!G119,),\"\")","v":0},null,{"$f":"IFERROR(SUM(Veranstaltungsanfrage!#REF!*Veranstaltungsanfrage!#REF!),\"\")","v":""}]
[6603,{"$f":"IFERROR(SUM(Veranstaltungsanfrage!F90*Veranstaltungsanfrage!G90,),\"\")","v":0},6040,{"$f":"IFERROR(SUM(Veranstaltungsanfrage!F120*Veranstaltungsanfrage!G120,),\"\")","v":0},null,{"$f":"IFERROR(SUM(Veranstaltungsanfrage!#REF!*Veranstaltungsanfrage!#REF!),\"\")","v":""}]
[6607,{"$f":"IFERROR(SUM(Veranstaltungsanfrage!F91*Veranstaltungsanfrage!G91,),\"\")","v":0},6058,{"$f":"IFERROR(SUM(Veranstaltungsanfrage!F121*Veranstaltungsanfrage!G121,),\"\")","v":0},null,{"$f":"IFERROR(SUM(Veranstaltungsanfrage!#REF!*Veranstaltungsanfrage!#REF!),\"\")","v":""}]
[6600,{"$f":"IFERROR(SUM(Veranstaltungsanfrage!F92*Veranstaltungsanfrage!G92,),\"\")","v":0},6158,{"$f":"IFERROR(SUM(Veranstaltungsanfrage!F122*Veranstaltungsanfrage!G122,),\"\")","v":0}]
[6601,{"$f":"IFERROR(SUM(Veranstaltungsanfrage!F93*Veranstaltungsanfrage!G93,),\"\")","v":0},6032,{"$f":"IFERROR(SUM(Veranstaltungsanfrage!F123*Veranstaltungsanfrage!G123,),\"\")","v":0}]
[6602,{"$f":"IFERROR(SUM(Veranstaltungsanfrage!F94*Veranstaltungsanfrage!G94,),\"\")","v":0},6027,{"$f":"IFERROR(SUM(Veranstaltungsanfrage!F124*Veranstaltungsanfrage!G124,),\"\")","v":0}]
[6605,{"$f":"IFERROR(SUM(Veranstaltungsanfrage!F95*Veranstaltungsanfrage!G95,),\"\")","v":0},6616,{"$f":"IFERROR(SUM(Veranstaltungsanfrage!F125*Veranstaltungsanfrage!G125,),\"\")","v":0}]
[6615,{"$f":"IFERROR(SUM(Veranstaltungsanfrage!F96*Veranstaltungsanfrage!G96,),\"\")","v":0},6608,{"$f":"IFERROR(SUM(Veranstaltungsanfrage!F126*Veranstaltungsanfrage!G126,),\"\")","v":0}]
[6612,{"$f":"IFERROR(SUM(Veranstaltungsanfrage!F97*Veranstaltungsanfrage!G97,),\"\")","v":0},6609,{"$f":"IFERROR(SUM(Veranstaltungsanfrage!F127*Veranstaltungsanfrage!G127,),\"\")","v":0}]
[6621,{"$f":"IFERROR(SUM(Veranstaltungsanfrage!F98*Veranstaltungsanfrage!G98,),\"\")","v":0},6620,{"$f":"IFERROR(SUM(Veranstaltungsanfrage!F128*Veranstaltungsanfrage!G128,),\"\")","v":0}]
["Summe:",{"$f":"SUM(B2:B23)","v":0},"Summe:",{"$f":"SUM(D2:D23)","v":0}]
[]
[]
[]
[null,null,null,{"$f":"IFERROR(SUM(Veranstaltungsanfrage!#REF!*Veranstaltungsanfrage!#REF!,),\"\")","v":""}]
[]
[null,null,null,{"$f":"IFERROR(SUM(Veranstaltungsanfrage!#REF!*Veranstaltungsanfrage!#REF!,),\"\")","v":""}]
[null,{"$f":"IFERROR(SUM(Veranstaltungsanfrage!#REF!*Veranstaltungsanfrage!#REF!,),\"\")","v":""}]
[null,null,null,{"$f":"IFERROR(SUM(Veranstaltungsanfrage!#REF!*Veranstaltungsanfrage!#REF!,),\"\")","v":""}]
[]
[null,null,null,null,null,null,null," "]